Cogmind - Beta 11.1 @@@ ROGUE MODE // 2022.05.04 @ 00:50:59 // Winter2019/RPGLIKE Player: Torako Result: Escaped! Performance ------------- Evolutions (9) 4500 Regions Visited (33) 6600 Robots Destroyed (271) 1355 Value Destroyed (10660) 10660 Prototype IDs (79) 1580 Alien Tech Used (3) 600 Bonus (11471) 11471 TOTAL SCORE: 36766 Bonus ------- Triggered High Security 500 High Alert Combat Kills 1972 Follower Combat Kills 1869 Network Hubs Disabled 400 Met Data Miner 300 Met Imprinter 300 Destroyed Z-Imprinter 1000 Met Zhirov 300 Built Enhanced Grunts 300 A7 Reached Mainframe 300 Met R17 at Cetus 500 Hacked Protovariant 500 Scanned by Researcher 500 Win 3000 Friendly Fire -270 Cogmind --------- Core Integrity 600/600 Matter 300/300 Energy 1234/1240 System Corruption 0% Temperature Cool (0) Movement Hovering (28) Location To Epsilon Eridani Parts ------- > --- POWER (3) -------- Hybrid Antimatter Reactor Micro Antimatter Reactor Light Quantum Reactor > --- PROPULSION (6) --- Cooled Airjet Cooled Airjet Cooled Gravmag System Cooled Gravmag System Cooled Gravmag System Cooled Linear Gravjet > --- UTILITY (10) ----- Advanced Power Amplifier Quantum Shading Machine Experimental Signal Interpreter Improved Terrain Scanner Experimental Target Analyzer Experimental Phase Shifter Improved Powered Armor Experimental EM Disruption Field Advanced Force Field System Mapper > --- WEAPON (3) ------- Plasma Lance Plasma Lance CR-A16's Behemoth Slayer > --- INVENTORY (6) ---- Zionite Biocell (600) Variable Charge Gun Hypervelocity Multirail Precision Rocket Launcher Force Lance Peak State ------------ > --- POWER ------------ Light Antimatter Reactor Hybrid Antimatter Reactor Zionite Light DM Reactor > --- PROPULSION ------- Cooled Airjet Cooled Airjet Cooled Airjet Cooled Gravmag System Cooled Gravmag System Cooled Gravmag System > --- UTILITY ---------- Advanced Power Amplifier Quantum Shading Machine Experimental Signal Interpreter Advanced Melee Analysis Suite Experimental Target Analyzer Improved Reaction Control System Experimental Phase Shifter Improved Powered Armor Experimental EM Disruption Field Advanced Force Field > --- WEAPON ----------- Disintegrator Plasma Sword > --- INVENTORY -------- Protomatter Zionite Biocell Transdimensional Reconstructor Variable Charge Gun Hypervelocity Multirail Precision Rocket Launcher [Rating: 171] Favorites ----------- Power Zionite Light DM Reactor Engine Light Angular Momentum Engine Power Core Fission Core Reactor Zionite Light DM Reactor Propulsion Cooled Airjet Treads Light Treads Hover Unit Cooled Airjet Flight Unit Flight Unit Utility Advanced Melee Analysis Suite Device Improved Terrain Scanner Storage Zionite Biocell Processor Advanced Melee Analysis Suite Hackware Hacking Suite Protection Improved Powered Armor Weapon Plasma Sword Energy Gun Medium Laser Energy Cannon Proton Cannon Ballistic Gun Improved Heavy Machine Gun Launcher Advanced EMP Blaster Impact Weapon Heavy Hammer Slashing Weapon Plasma Sword Piercing Weapon CR-A16's Behemoth Slayer Build | -11 -10 -10 -10 -9 -8 -8 -7 -7 -7 -7 -6 -6 -6 -6 -6 -6 -5 -5 -5 -5 -5 -4 -4 -4 -4 -4 -4 -4 -4 -3 -3 -2 -1 ------- Run | Scr Mat Min Exi Min Mat Sto Fac Low Low Dat Pro Fac Low Low Zio Dee Pro Fac Upp Upp Zhi Pro Fac Was Fac Ext Cet Arc Hub Res Tes Res Acc Slots Evolved 17 | . 3 2 . . 2 . 2 . . . 1 1 . . 2 . . 1 . . . 1 . . . . . . 1 1 . . . Power 2 | . . . . . . . . . . . . 1 . . . . . . . . . . . . . . . . . 1 . . . Propulsion 5 | . 3 . . . . . . . . . . . . . 1 . . . . . . 1 . . . . . . . . . . . Utility 9 | . . 2 . . 2 . 2 . . . 1 . . . . . . 1 . . . . . . . . . . 1 . . . . Weapon 1 | . . . . . . . . . . . . . . . 1 . . . . . . . . . . . . . . . . . . Parts Attached 180 | 3 8 4 . 2 21 12 15 1 2 . 11 7 3 2 4 12 . 10 . . 9 1 3 . 6 . . . 9 8 18 7 2 Power 20 | 1 . . . 1 . 2 2 . . . . 2 . . . 1 . 1 . . 2 . 1 . . . . . . 1 3 2 1 Engine 3 | 1 . . . . . 1 . . . . . 1 . . . . . . . . . . . . . . . . . . . . . Core 6 | . . . . 1 . 1 2 . . . . 1 . . . . . 1 . . . . . . . . . . . . . . . Reactor 11 | . . . . . . . . . . . . . . . . 1 . . . . 2 . 1 . . . . . . 1 3 2 1 Propulsion 42 | 1 4 . . . 7 4 4 . . . . . . . 1 3 . 5 . . 4 1 . . . . . . 1 1 4 2 . Treads 1 | 1 . . . . . . . . . . . . . . . . . . . . . . . . . . . . . . . . . Leg . | . . . . . . . . . . . . . . . . . . . . . . . . . . . . . . . . . . Wheel . | . . . . . . . . . . . . . . . . . . . . . . . . . . . . . . . . . . Hover 30 | . . . . . 4 3 2 . . . . . . . 1 3 . 5 . . 4 1 . . . . . . 1 1 3 2 . Flight 11 | . 4 . . . 3 1 2 . . . . . . . . . . . . . . . . . . . . . . . 1 . . Utility 79 | . 3 4 . 1 10 2 9 . 2 . 8 3 1 1 . 8 . 2 . . 3 . 2 . 4 . . . 5 5 4 1 1 Device 40 | . 2 1 . . 5 1 3 . . . 5 1 1 . . 5 . . . . 1 . 2 . 3 . . . 3 2 4 . 1 Storage 5 | . . . . . 1 . . . . . 1 . . . . 1 . . . . . . . . . . . . 1 1 . . . Processor 15 | . 1 . . . 1 1 4 . 2 . . . . 1 . . . 1 . . . . . . 1 . . . 1 2 . . . Hackware 5 | . . . . . 2 . 1 . . . . 1 . . . . . . . . . . . . . . . . . . . 1 . Protection 14 | . . 3 . 1 1 . 1 . . . 2 1 . . . 2 . 1 . . 2 . . . . . . . . . . . . Artifact . | . . . . . . . . . . . . . . . . . . . . . . . . . . . . . . . . . . Weapon 39 | 1 1 . . . 4 4 . 1 . . 3 2 2 1 3 . . 2 . . . . . . 2 . . . 3 1 7 2 . Energy Gun 2 | 1 . . . . . . . . . . . . . . . . . . . . . . . . . . . . 1 . . . . Energy Cannon 2 | . . . . . . . . . . . . . 1 . . . . . . . . . . . . . . . . . 1 . . Ballistic Gun 2 | . . . . . . 1 . . . . . . . . . . . . . . . . . . . . . . . . 1 . . Ballistic Cannon . | . . . . . . . . . . . . . . . . . . . . . . . . . . . . . . . . . . Launcher 4 | . . . . . 1 . . . . . 2 . 1 . . . . . . . . . . . . . . . . . . . . Special Weapon . | . . . . . . . . . . . . . . . . . . . . . . . . . . . . . . . . . . Impact Weapon 6 | . 1 . . . 1 1 . 1 . . 1 1 . . . . . . . . . . . . . . . . . . . . . Slashing Weapon 14 | . . . . . 2 2 . . . . . 1 . 1 2 . . 2 . . . . . . 2 . . . . . 1 1 . Piercing Weapon 9 | . . . . . . . . . . . . . . . 1 . . . . . . . . . . . . . 2 1 4 1 . Special Melee Weapon . | . . . . . . . . . . . . . . . . . . . . . . . . . . . . . . . . . . Unidentified Prototypes 42 | . . . . . 2 5 3 . . . 2 . 1 . . 6 . 1 . . 4 . 1 . 3 . . . 3 1 8 2 . Corrupted Parts 3 | . . . . . . . . . . . 3 . . . . . . . . . . . . . . . . . . . . . . System Corruption 22 | . . . . . . . . . . . 22 . . . . . . . . . . . . . . . . . . . . . . Parts Lost 1 | . . . . . . . . . . . . . . . . . . . . . . . . . . . . . 1 . . . . Power . | . . . . . . . . . . . . . . . . . . . . . . . . . . . . . . . . . . Propulsion . | . . . . . . . . . . . . . . . . . . . . . . . . . . . . . . . . . . Utility 1 | . . . . . . . . . . . . . . . . . . . . . . . . . . . . . 1 . . . . Weapon . | . . . . . . . . . . . . . . . . . . . . . . . . . . . . . . . . . . Highest Loss Streak 1 | . . . . . . . . . . . . . . . . . . . . . . . . . . . . . 1 . . . . To Critical Strikes . | . . . . . . . . . . . . . . . . . . . . . . . . . . . . . . . . . . Average Slot Usage (%) 99 | . 98 100 100 100 99 99 100 100 100 100 100 98 100 99 100 100 100 100 100 100 100 100 100 100 99 100 100 100 100 91 97 97 100 Engine 1 | . 14 13 11 6 . . . . . . . 4 6 6 5 . . . . . . . . . . . . . . . . . . Core 3 | . . . . 4 9 8 7 7 7 7 7 4 6 6 5 5 5 5 5 5 2 . . . . . . . . . . . . Reactor 4 | . . . . . . . . . . . . . . . . 4 5 5 5 5 7 10 10 10 10 10 10 10 9 9 11 12 13 Hover 26 | . . . . . 27 35 30 30 30 30 28 26 25 25 27 27 27 26 26 26 26 28 30 30 30 30 30 30 28 27 27 26 27 Flight 5 | . 56 53 44 44 9 . . . . . . . . . . . . . . . . . . . . . . . . . . . . Device 23 | . 11 8 11 11 21 27 22 23 17 15 20 24 25 25 23 26 27 26 26 26 26 25 25 25 24 25 25 25 23 26 27 27 27 Processor 13 | . 1 5 . . 3 9 22 23 27 30 23 15 12 12 11 11 11 14 15 15 15 15 15 15 15 15 15 15 14 13 11 9 9 Protection 7 | . . 6 22 22 14 9 7 7 7 7 11 8 6 6 5 5 5 5 5 5 5 5 5 5 5 5 5 5 4 4 4 4 4 Impact Weapon 1 | . 13 13 11 11 2 . . . 7 7 6 2 . . . . . . . . . . . . . . . . . . . . . Slashing Weapon 6 | . . . . . 6 9 7 6 . . . 3 6 9 8 11 11 10 10 10 10 10 10 10 10 10 10 10 9 4 3 . . Piercing Weapon 3 | . . . . . . . . . . . . . . . 3 5 5 5 5 5 5 5 5 5 5 5 5 5 3 5 9 12 13 Naked Turns . | . . . . . . . . . . . . . . . . . . . . . . . . . . . . . . . . . . Heaviest Build 86 | 5 8 11 11 18 29 27 28 29 29 28 54 60 56 54 55 62 62 62 60 60 67 67 67 67 67 67 67 67 71 69 86 79 78 Greatest Support 119 | 8 21 21 21 21 43 53 37 37 37 37 53 49 54 54 66 68 68 68 63 63 76 84 111 84 88 115 88 88 88 88 119 119 98 Greatest Overweight (x) 1 | . . . . . 1 1 . . . . 1 1 1 . . . . 1 . . . . . . . . . . . . 1 . . Average Overweight (x) . | . . . . . . . . . . . . . . . . . . . . . . . . . . . . . . . . . . Largest Inventory Capacity 6 | 1 1 1 1 1 3 6 6 6 6 6 6 6 6 6 6 6 6 6 6 6 6 6 6 6 6 6 6 6 6 6 6 6 6 Average Capacity 5 | 1 1 1 1 1 2 4 6 6 6 6 6 6 6 6 6 6 6 6 6 6 6 6 6 6 6 6 6 6 6 6 6 6 6 Most Carried 6 | . 1 1 1 1 3 6 6 6 6 6 6 6 6 6 6 6 6 6 6 6 6 6 6 6 6 6 6 6 6 6 6 6 5 Average Carried 4 | . . . 1 . 2 4 5 5 6 6 4 5 4 4 5 5 5 5 6 6 5 5 5 5 6 5 6 6 5 5 5 5 5 Final Capacity 6 | 1 1 1 1 1 3 6 6 6 6 6 6 6 6 6 6 6 6 6 6 6 6 6 6 6 6 6 6 6 6 6 6 6 6 Final Carried 6 | . 1 1 1 1 3 6 6 6 6 6 6 5 4 6 6 6 6 6 6 6 6 5 6 6 6 6 6 6 6 5 6 5 5 Class Distribution -------------------- 44% | Hacker-Scout 25% | Scout 9% | Sprinter 5% | Generator-Sprinter 5% | Mutant 3% | Scavenger-Scout 3% | Assassin Dominant Class ---------------- Sprinter | -10/Materials Sprinter | -10/Mines Sprinter | -10/Exiles Sprinter | -9/Mines Mutant | -8/Materials Scout | -8/Storage Scout | -7/Factory Scout | -7/Lower Caves Scout | -7/Lower Caves Scout | -7/Data Miner Assassin | -6/Proximity Caves Hacker-Scout | -6/Factory Hacker-Scout | -6/Lower Caves Hacker-Scout | -6/Lower Caves Hacker-Scout | -6/Zion Scavenger-Scout | -6/Deep Caves Hacker-Scout | -5/Proximity Caves Hacker-Scout | -5/Factory Hacker-Scout | -5/Upper Caves Hacker-Scout | -5/Upper Caves Hacker-Scout | -5/Zhirov Hacker-Scout | -4/Proximity Caves Hacker-Scout | -4/Factory Hacker-Scout | -4/Waste Hacker-Scout | -4/Factory Hacker-Scout | -4/Extension Hacker-Scout | -4/Cetus Hacker-Scout | -4/Archives Hacker-Scout | -4/Hub_04(d) Generator-Sprinter | -3/Research Generator-Sprinter | -3/Testing Hacker-Scout | -2/Research Hacker-Scout | -1/Access Resources | -11 -10 -10 -10 -9 -8 -8 -7 -7 -7 -7 -6 -6 -6 -6 -6 -6 -5 -5 -5 -5 -5 -4 -4 -4 -4 -4 -4 -4 -4 -3 -3 -2 -1 ----------- Run | Scr Mat Min Exi Min Mat Sto Fac Low Low Dat Pro Fac Low Low Zio Dee Pro Fac Upp Upp Zhi Pro Fac Was Fac Ext Cet Arc Hub Res Tes Res Acc Matter Collected 2234 | 230 80 30 . 30 210 120 150 . 30 . 80 196 40 20 20 140 . 40 . 60 . 75 45 . 86 56 27 . 109 60 130 130 40 Remotely . | . . . . . . . . . . . . . . . . . . . . . . . . . . . . . . . . . . Salvage Created 12284 | 65 460 116 . 108 1115 2313 666 . 57 . 426 747 49 29 . 164 302 463 . . . 152 156 . 196 1489 215 116 1170 141 212 728 629 Parts 703 | 4 12 10 . 6 81 131 54 . . . 18 22 3 . . 26 21 18 . . . 11 7 . 7 79 12 4 73 4 20 45 35 Haulers Intercepted 19 | . 1 . . . 2 4 3 . . . 1 1 . . . . . 3 . . . . 1 . 1 . . . 1 . . . 1 Recyclers Shooed 3 | . . . . . . . . . . . . 1 . . . . . . . . . . . . . . . . . . . 2 . Parts Field Recycled . | . . . . . . . . . . . . . . . . . . . . . . . . . . . . . . . . . . Retrieved Matter . | . . . . . . . . . . . . . . . . . . . . . . . . . . . . . . . . . . Parts Self-Destructed 50 | . . . . . . . . . . . 18 . . . . . 21 . . . . 11 . . . . . . . . . . . Prevented 11 | . . . . . . . . . . . 11 . . . . . . . . . . . . . . . . . . . . . . Kills | -11 -10 -10 -10 -9 -8 -8 -7 -7 -7 -7 -6 -6 -6 -6 -6 -6 -5 -5 -5 -5 -5 -4 -4 -4 -4 -4 -4 -4 -4 -3 -3 -2 -1 ------- Run | Scr Mat Min Exi Min Mat Sto Fac Low Low Dat Pro Fac Low Low Zio Dee Pro Fac Upp Upp Zhi Pro Fac Was Fac Ext Cet Arc Hub Res Tes Res Acc Combat Hostiles Destroyed 188 | . 11 7 . 4 26 40 12 . . . 6 13 . . . 6 8 2 . . . 2 . . 2 18 4 1 13 2 3 6 2 Melee 163 | . 4 4 . 3 26 40 12 . . . 3 11 . . . 6 7 1 . . . 2 . . 2 16 4 1 12 2 3 4 . AOE 1 | . . . . . . . . . . . 1 . . . . . . . . . . . . . . . . . . . . . . Classes Destroyed 23 | 2 7 1 . 2 2 2 . . 1 . . . . 1 . 1 1 . . . . 1 . . . . . . 2 . . . . Worker 12 | . . . . 1 2 1 2 . . . . 1 . . . . . . . . . . . . . . . . 5 . . . . Builder 13 | . 1 . . . . 4 3 . . . . 1 . . . . . . . . . . 1 . . 1 . . 1 . 1 . . Tunneler 2 | 1 . 1 . . . . . . . . . . . . . . . . . . . . . . . . . . . . . . . Hauler 19 | . 1 . . . 2 4 3 . . . 1 1 . . . . . 3 . . . . 1 . 1 . . . 1 . . . 1 Recycler 8 | 1 . . . . . 1 . . . . . . . . . . . . . . . . . . . 1 . . 1 . . 3 1 Minesweeper 1 | . . . . . . . . . . . . . . 1 . . . . . . . . . . . . . . . . . . . Mechanic 1 | . 1 . . . . . . . . . . . . . . . . . . . . . . . . . . . . . . . . Operator 8 | . 1 . . . 1 1 2 . . . . . . . . . . . . . . . . . . 1 . . 2 . . . . Watcher 18 | . 1 . . . 3 1 1 . . . . 1 . . . . . . . . . . 1 . . 2 1 . 2 1 . . 4 Swarmer 30 | . 2 6 . . 7 5 . . . . . 4 . . . . 3 . . . . . . . . . . . 3 . . . . Cutter 5 | . . . . . . . . . . . . . . . . . . . . . . . . . . . . . 2 . . 3 . Grunt 81 | . 9 . . 3 12 21 8 . . . 3 6 . . . . 4 . . . . . . . 1 11 1 . . 1 1 . . Brawler 1 | . . . . 1 . . . . . . . . . . . . . . . . . . . . . . . . . . . . . Duelist 1 | . . . . . . 1 . . . . . . . . . . . . . . . . . . . . . . . . . . . Protector 1 | . . . . . . 1 . . . . . . . . . . . . . . . . . . . . . . . . . . . Sentry 34 | . . 1 . . 4 12 2 . . . 1 3 . . . . . . . . . . . . 1 3 . 1 5 . . 1 . Specialist 2 | . . . . . 2 . . . . . . . . . . . . . . . . . . . . . . . . . . . . Hunter 6 | . . . . . 1 . 2 . . . 2 . . . . . . 1 . . . . . . . . . . . . . . . Programmer 7 | . . . . . . . . . . . . . . . . . . . . . . 2 . . . 2 . . . 1 2 . . Heavy 1 | . . . . . . . . . . . . . . . . . . . . . . . . . . . . . 1 . . . . Behemoth 9 | . . . . . . . . . . . . . . . . . 1 1 . . . . . . . 2 . . 1 . . 2 2 Cetus Guard 3 | . . . . . . . . . . . . . . . . . . . . . . . . . . . 3 . . . . . . Lightning 1 | . . . . . . . . . . . . . . . . . . . . . . . . . . . . . 1 . . . . Z-Light 5 | . . . . . . . . . . . . . . . . 5 . . . . . . . . . . . . . . . . . Samaritan 2 | . . . . . . . . . 1 . . . 1 . . . . . . . . . . . . . . . . . . . . Savage 1 | . . . . . . . . . . . . . . . . . . . . . . . . . . . . . 1 . . . . Best Kill Streak 12 | 2 6 4 . 4 6 7 4 . . . 3 6 . 1 . 3 7 2 . . . 2 2 . 2 5 2 1 12 1 2 7 2 Combat Bots Only 7 | . 4 6 . 3 6 6 3 . . . 2 6 . . . 3 7 1 . . . 2 . . 1 4 2 1 5 1 2 4 1 Max Kills in Single Turn 3 | 1 1 1 . 1 1 1 1 . 1 . 1 1 1 1 . 1 2 1 . . . 1 1 . 1 2 1 1 3 1 1 1 1 Gunslinging . | . . . . . . . . . . . . . . . . . . . . . . . . . . . . . . . . . . Exploded 1 | . . . . . . . . . . . 1 . . . . . . . . . . . . . . . . . . . . . . Melee 2 | . 1 1 . 1 1 1 1 . . . 1 1 . . . 1 2 1 . . . 1 . . 1 2 1 1 2 1 1 1 . Uniques/NPCs Destroyed 1 | . . . . . . . . . . . . . . . . 1 . . . . . . . . . . . . . . . . . Z-Imprinter (-6/Deep Caves) Combat | -11 -10 -10 -10 -9 -8 -8 -7 -7 -7 -7 -6 -6 -6 -6 -6 -6 -5 -5 -5 -5 -5 -4 -4 -4 -4 -4 -4 -4 -4 -3 -3 -2 -1 -------- Run | Scr Mat Min Exi Min Mat Sto Fac Low Low Dat Pro Fac Low Low Zio Dee Pro Fac Upp Upp Zhi Pro Fac Was Fac Ext Cet Arc Hub Res Tes Res Acc Damage Taken 6485 | . 353 144 . 329 604 978 612 . . . 410 365 . . . 56 60 11 . 236 . 9 . . 79 498 285 132 673 55 280 231 85 Core 4387 | . 285 125 . 225 356 721 463 . . . 246 192 . . . 38 37 8 . 156 . 7 . . 53 320 174 78 479 38 180 160 46 Absorbed by Shields 3596 | . . . . . 148 355 166 . . . 161 327 . . . 58 63 12 . 25 . 10 . . 83 519 296 137 553 57 299 237 90 Redirected to Core 3436 | . 215 60 . 136 318 471 323 . . . 204 151 . . . 38 37 8 . 156 . 7 . . 42 291 166 78 363 38 156 132 46 Redirected to Shielding 49 | . . . . 21 28 . . . . . . . . . . . . . . . . . . . . . . . . . . . . Core Remaining (%) 82 | 100 . . . 71 . 98 . . . . 74 . . . . . 100 . . . . 72 . . . . . . 60 . 64 81 100 Volleys Fired 18 | 6 . . . . . . . . . . 9 . . . . . . . . . . . . . . . . . 3 . . . . Largest 1 | 1 . . . . . . . . . . 1 . . . . . . . . . . . . . . . . . 1 . . . . Hottest 75 | 50 . . . . . . . . . . 36 . . . . . . . . . . . . . . . . . 75 . . . . Shots Fired 18 | 6 . . . . . . . . . . 9 . . . . . . . . . . . . . . . . . 3 . . . . Gun 9 | 6 . . . . . . . . . . . . . . . . . . . . . . . . . . . . 3 . . . . Cannon . | . . . . . . . . . . . . . . . . . . . . . . . . . . . . . . . . . . Launcher 9 | . . . . . . . . . . . 9 . . . . . . . . . . . . . . . . . . . . . . Special . | . . . . . . . . . . . . . . . . . . . . . . . . . . . . . . . . . . Kinetic . | . . . . . . . . . . . . . . . . . . . . . . . . . . . . . . . . . . Thermal 9 | 6 . . . . . . . . . . . . . . . . . . . . . . . . . . . . 3 . . . . Explosive . | . . . . . . . . . . . . . . . . . . . . . . . . . . . . . . . . . . Electromagnetic 9 | . . . . . . . . . . . 9 . . . . . . . . . . . . . . . . . . . . . . Robot Hit Streak 4 | 4 . . . . . . . . . . 1 . . . . . . . . . . . . . . . . . . . . . . Robot Miss Streak 4 | 1 . . . . . . . . . . 4 . . . . . . . . . . . . . . . . . . . . . . Penetration Max . | . . . . . . . . . . . . . . . . . . . . . . . . . . . . . . . . . . Secondary Targets . | . . . . . . . . . . . . . . . . . . . . . . . . . . . . . . . . . . Shots Hit Robots 665 | 5 28 12 . 21 88 132 49 . 1 . 9 39 1 4 . 21 13 10 . . . 3 7 . 11 65 21 5 55 15 14 21 15 Core Hits 276 | 3 6 2 . 3 32 55 21 . . . 10 14 1 1 . 11 8 4 . . . 2 3 . 4 24 8 1 35 5 5 10 8 Critical Kills 2 | . 1 . . . . . . . . . . 1 . . . . . . . . . . . . . . . . . . . . . Critical Parts Destroyed 16 | . 5 3 . 2 . . . . . . 3 3 . . . . . . . . . . . . . . . . . . . . . Critical Strikes 88 | . 6 3 . 2 12 9 4 . . . 3 7 . . . 3 . 1 . . . . 1 . 1 10 8 1 6 5 3 2 1 Smash 20 | . 6 3 . 2 2 . . . . . 3 4 . . . . . . . . . . . . . . . . . . . . . Sever 55 | . . . . . 10 9 4 . . . . 3 . . . 2 . 1 . . . . 1 . 1 8 6 1 6 2 1 . . Impale 13 | . . . . . . . . . . . . . . . . 1 . . . . . . . . . 2 2 . . 3 2 2 1 Melee Attacks 971 | . 41 14 . 24 103 157 75 3 3 . 12 48 10 4 6 31 20 21 3 3 . 11 19 . 18 72 22 5 71 24 57 25 69 Impact 126 | . 41 14 . 24 18 1 . . 3 . 12 13 . . . . . . . . . . . . . . . . . . . . . Slashing 654 | . . . . . 85 156 75 3 . . . 35 10 4 5 28 15 18 3 3 . 9 15 . 16 61 20 5 61 12 15 . . Piercing 191 | . . . . . . . . . . . . . . . 1 3 5 3 . . . 2 4 . 2 11 2 . 10 12 42 25 69 Sneak Attacks 73 | . 5 1 . 1 7 10 8 . 1 . . 4 1 2 . . . 5 . . . 2 5 . 1 5 . . 9 . 1 2 3 Combat Hostiles 15 | . 1 . . . . . . . . . . . . . . . . 2 . . . 2 . . . 3 . . 5 . . 1 1 Follow-up Attacks 62 | . . . . . . . . . . . . . . 1 . 7 2 2 . . . . 3 . 2 14 5 1 11 4 2 4 4 Damage Inflicted 32862 | 73 1419 565 . 898 3336 5151 2161 . 132 . 992 2063 99 233 . 1004 625 615 . . . 230 595 . 629 3590 1087 274 3700 837 913 952 689 Guns 73 | 73 . . . . . . . . . . . . . . . . . . . . . . . . . . . . . . . . . Cannons . | . . . . . . . . . . . . . . . . . . . . . . . . . . . . . . . . . . Explosions 1064 | . . . . . . . . . . . 559 . . . . . . . . . . . . . . . . . 505 . . . . Melee 31577 | . 1419 565 . 898 3336 5151 2161 . 132 . 433 2063 99 233 . 1004 625 615 . . . 230 595 . 629 3566 1087 274 3071 837 913 952 689 Ramming 148 | . . . . . . . . . . . . . . . . . . . . . . . . . . 24 . . 124 . . . . Kinetic . | . . . . . . . . . . . . . . . . . . . . . . . . . . . . . . . . . . Thermal 73 | 73 . . . . . . . . . . . . . . . . . . . . . . . . . . . . . . . . . Explosive . | . . . . . . . . . . . . . . . . . . . . . . . . . . . . . . . . . . Electromagnetic 1064 | . . . . . . . . . . . 559 . . . . . . . . . . . . . . . . . 505 . . . . Impact 4908 | . 1419 565 . 898 608 . . . 132 . 433 853 . . . . . . . . . . . . . . . . . . . . . Slashing 22716 | . . . . . 2728 5151 2161 . . . . 1210 99 233 . 929 537 530 . . . 230 554 . 593 3210 989 274 2858 380 50 . . Piercing 3953 | . . . . . . . . . . . . . . . . 75 88 85 . . . . 41 . 36 356 98 . 213 457 863 952 689 Highest Corruption 22 | . . . . . . . 1 . . . 22 . . . . . . . . . . . 3 8 8 9 10 10 17 . 2 . . Average Corruption 9 | . . . . . . . 1 . . . 12 . . . . . . . . . . . 3 5 8 8 9 10 12 . 1 . . Corruption Purged 1 | . . . . . . . 1 . . . . . . . . . . . . . . . . . . . . . . . . . . Corruption Blocked . | . . . . . . . . . . . . . . . . . . . . . . . . . . . . . . . . . . Effects 81 | . . . . . . . 1 . . . 12 . . . . . . . . . . . . 1 4 29 12 4 17 . 1 . . Message Errors 25 | . . . . . . . . . . . 3 . . . . . . . . . . . . 1 1 7 5 3 5 . . . . Matter Fused 22 | . . . . . . . . . . . 7 . . . . . . . . . . . . . 1 8 4 1 1 . . . . Heat Flow Errors 8 | . . . . . . . . . . . 1 . . . . . . . . . . . . . 1 4 1 . 1 . . . . Energy Discharges 8 | . . . . . . . 1 . . . . . . . . . . . . . . . . . . 4 1 . 1 . 1 . . Parts Rejected 2 | . . . . . . . . . . . . . . . . . . . . . . . . . . . . . 2 . . . . Data Loss (minor) 9 | . . . . . . . . . . . . . . . . . . . . . . . . . 1 5 1 . 2 . . . . Data Loss (major) 4 | . . . . . . . . . . . . . . . . . . . . . . . . . . 1 . . 3 . . . . Misdirections 3 | . . . . . . . . . . . 1 . . . . . . . . . . . . . . . . . 2 . . . . Overload Shots . | . . . . . . . . . . . . . . . . . . . . . . . . . . . . . . . . . . Overflow Damage 3679 | . 431 248 . 242 289 369 137 . 92 . 156 407 . 111 . 84 38 98 . . . 43 105 . 20 171 119 . 102 112 169 110 26 Projectiles . | . . . . . . . . . . . . . . . . . . . . . . . . . . . . . . . . . . Explosions . | . . . . . . . . . . . . . . . . . . . . . . . . . . . . . . . . . . Melee 3679 | . 431 248 . 242 289 369 137 . 92 . 156 407 . 111 . 84 38 98 . . . 43 105 . 20 171 119 . 102 112 169 110 26 Knockbacks 16 | . 8 1 . 3 . . . . . . 1 3 . . . . . . . . . . . . . . . . . . . . . Impact 15 | . 8 1 . 2 . . . . . . 1 3 . . . . . . . . . . . . . . . . . . . . . Kinetic . | . . . . . . . . . . . . . . . . . . . . . . . . . . . . . . . . . . Secondary 1 | . . . . 1 . . . . . . . . . . . . . . . . . . . . . . . . . . . . . Self-Inflicted Damage 347 | . . . . . . . . . . . 104 . . . . . . . . . . . . . . 12 . . 231 . . . . Shots 8 | . . . . . . . . . . . 6 . . . . . . . . . . . . . . . . . 2 . . . . Rammed 3 | . . . . . . . . . . . . . . . . . . . . . . . . . . 1 . . 2 . . . . Targets Rammed 3 | . . . . . . . . . . . . . . . . . . . . . . . . . . 1 . . 2 . . . . Kicked . | . . . . . . . . . . . . . . . . . . . . . . . . . . . . . . . . . . Crushed . | . . . . . . . . . . . . . . . . . . . . . . . . . . . . . . . . . . Highest Temperature 277 | 40 8 3 3 52 6 7 . . . . 176 . . . . . 4 2 3 5 . 4 4 . 132 277 168 . 147 . 273 . . Average Temperature 31 | 16 5 2 2 12 3 4 . . . . 40 . . . . . 2 1 3 4 . 3 3 . 77 109 91 . 60 . 106 . . Received Heat Transfer 1602 | . 171 18 . 132 201 430 133 . . . 73 116 . . . 16 17 . . . . . . . 30 88 42 . 66 8 45 16 . Siege Activations . | . . . . . . . . . . . . . . . . . . . . . . . . . . . . . . . . . . Robots Corrupted 1 | . . . . . . . . . . . . . . . . . . . . . . . . . . . . . 1 . . . . Combat Hostiles . | . . . . . . . . . . . . . . . . . . . . . . . . . . . . . . . . . . Parts Fried 33 | . 11 2 . 1 2 . . . . . 3 9 . . . . . . . . . . . . . 1 1 . 3 . . . . Impact Corruptions 60 | . 18 11 . 8 3 . . . 1 . 4 14 . . . . . . . . . . . . . . . . 1 . . . . Robots Melted . | . . . . . . . . . . . . . . . . . . . . . . . . . . . . . . . . . . Combat Hostiles . | . . . . . . . . . . . . . . . . . . . . . . . . . . . . . . . . . . Parts Melted 1 | . . . . . . . 1 . . . . . . . . . . . . . . . . . . . . . . . . . . Heat Transferred 222 | 222 . . . . . . . . . . . . . . . . . . . . . . . . . . . . . . . . . Parts Sabotaged 2 | . . . . . . . . . . . . . . . . . . . . . . . . . . . . . . . 2 . . Parts Stolen . | . . . . . . . . . . . . . . . . . . . . . . . . . . . . . . . . . . Parts Stripped . | . . . . . . . . . . . . . . . . . . . . . . . . . . . . . . . . . . Power Chain Reactions . | . . . . . . . . . . . . . . . . . . . . . . . . . . . . . . . . . . Missiles Intercepted . | . . . . . . . . . . . . . . . . . . . . . . . . . . . . . . . . . . Alert | -11 -10 -10 -10 -9 -8 -8 -7 -7 -7 -7 -6 -6 -6 -6 -6 -6 -5 -5 -5 -5 -5 -4 -4 -4 -4 -4 -4 -4 -4 -3 -3 -2 -1 ------- Run | Scr Mat Min Exi Min Mat Sto Fac Low Low Dat Pro Fac Low Low Zio Dee Pro Fac Upp Upp Zhi Pro Fac Was Fac Ext Cet Arc Hub Res Tes Res Acc Peak Influence 1740 | 10 465 387 . 167 851 1161 813 . . . . 425 . . . . . 329 . . . . 200 115 192 699 844 622 1740 1245 1080 860 730 Initial 1100 | . 6 181 . . 65 296 375 . . . . 104 . . . . . 131 . . . . 31 70 80 93 307 337 217 1100 699 607 504 Average 507 | 1 246 329 . 83 453 690 531 . . . . 193 . . . . . 236 . . . . 111 95 138 430 538 585 851 1181 838 745 607 Maximum Alert Level 5 | . 2 1 . . 3 4 3 . . . . 2 . . . . . 1 . . . . 1 . . 2 3 2 5 4 3 3 3 Low Security (%) 19 | 100 40 7 . 100 20 2 . . . . . 59 . . . . . 30 . . . . 98 100 100 5 . . 3 . . . . Level 1 21 | . 39 92 . . 22 17 16 . . . . 31 . . . . . 69 . . . . 1 . . 40 8 5 23 . . . . Level 2 35 | . 20 . . . 31 33 72 . . . . 9 . . . . . . . . . . . . . 53 72 95 31 . 3 35 89 Level 3 18 | . . . . . 24 35 11 . . . . . . . . . . . . . . . . . . . 18 . 10 . 96 65 10 Level 4 3 | . . . . . . 10 . . . . . . . . . . . . . . . . . . . . . . 2 100 . . . Level 5 . | . . . . . . . . . . . . . . . . . . . . . . . . . . . . . . . . . . High Security 1 | . . . . . . . . . . . . . . . . . . . . . . . . . . . . . 28 . . . . Max Security . | . . . . . . . . . . . . . . . . . . . . . . . . . . . . . . . . . . Squads Dispatched 70 | . 5 . . . 8 8 10 . . . . 3 . . . . . 4 . . . . 2 . . 4 . . 8 . 13 3 2 Investigation 34 | . 2 . . . 5 4 9 . . . . 3 . . . . . 4 . . . . 2 . . 3 . . . . . 1 1 Extermination 3 | . . . . . . . . . . . . . . . . . . . . . . . . . . . . . . . 2 . 1 Reinforcement 24 | . 3 . . . 3 2 1 . . . . . . . . . . . . . . . . . . 1 . . 4 . 8 2 . Assault 8 | . . . . . . 1 . . . . . . . . . . . . . . . . . . . . . . 4 . 3 . . Garrison 1 | . . . . . . 1 . . . . . . . . . . . . . . . . . . . . . . . . . . . Intercept . | . . . . . . . . . . . . . . . . . . . . . . . . . . . . . . . . . . Searches Triggered . | . . . . . . . . . . . . . . . . . . . . . . . . . . . . . . . . . . Data Miner Redirects 9 | . . . . . . . . . . . . 2 . . . . . 2 . . . . . . . 2 . . . . 2 1 . Construction Impeded 2 | . . . . . . 1 . . . . . . . . . . . . . . . . . . . . . . 1 . . . . Haulers Reinforced 1 | . . . . . . . 1 . . . . . . . . . . . . . . . . . . . . . . . . . . Active Scanning Responses . | . . . . . . . . . . . . . . . . . . . . . . . . . . . . . . . . . . Cargo Convoy Interrupts . | . . . . . . . . . . . . . . . . . . . . . . . . . . . . . . . . . . Stealth | -11 -10 -10 -10 -9 -8 -8 -7 -7 -7 -7 -6 -6 -6 -6 -6 -6 -5 -5 -5 -5 -5 -4 -4 -4 -4 -4 -4 -4 -4 -3 -3 -2 -1 --------- Run | Scr Mat Min Exi Min Mat Sto Fac Low Low Dat Pro Fac Low Low Zio Dee Pro Fac Upp Upp Zhi Pro Fac Was Fac Ext Cet Arc Hub Res Tes Res Acc Distress Signals 27 | . 2 . . 1 3 6 1 . . . . . . . . . . . . . . . 1 . 1 1 2 . 6 1 1 1 . Communications Jammed . | . . . . . . . . . . . . . . . . . . . . . . . . . . . . . . . . . . Distress Signals . | . . . . . . . . . . . . . . . . . . . . . . . . . . . . . . . . . . Times Spotted 401 | . 17 8 . 13 39 55 26 . . . 22 20 2 . . 9 9 2 . . . 5 1 6 4 28 15 4 45 4 49 13 5 Peak Tracking Total 23 | . 7 3 . 7 6 8 5 . . . 9 4 4 . . 5 4 1 . . . 4 2 6 3 4 5 3 23 2 14 7 2 Tactical Retreats 40 | . 2 . . 3 4 4 5 . . . 4 3 2 . . . . . . . . . 2 . . 1 . . 2 . 8 . . Traps | -11 -10 -10 -10 -9 -8 -8 -7 -7 -7 -7 -6 -6 -6 -6 -6 -6 -5 -5 -5 -5 -5 -4 -4 -4 -4 -4 -4 -4 -4 -3 -3 -2 -1 ------- Run | Scr Mat Min Exi Min Mat Sto Fac Low Low Dat Pro Fac Low Low Zio Dee Pro Fac Upp Upp Zhi Pro Fac Was Fac Ext Cet Arc Hub Res Tes Res Acc Traps Triggered 20 | . . . . . 1 2 2 . . . . . . . . . . . . . . . 1 . 1 3 . . 2 1 3 3 1 Indirectly 1 | . . . . . . . . . . . . . . . . . . . . . . . . . . . . . 1 . . . . Trap Hack Attempts . | . . . . . . . . . . . . . . . . . . . . . . . . . . . . . . . . . . Triggered . | . . . . . . . . . . . . . . . . . . . . . . . . . . . . . . . . . . Disarmed . | . . . . . . . . . . . . . . . . . . . . . . . . . . . . . . . . . . Reprogrammed . | . . . . . . . . . . . . . . . . . . . . . . . . . . . . . . . . . . Reused . | . . . . . . . . . . . . . . . . . . . . . . . . . . . . . . . . . . Traps Extracted . | . . . . . . . . . . . . . . . . . . . . . . . . . . . . . . . . . . Installed . | . . . . . . . . . . . . . . . . . . . . . . . . . . . . . . . . . . Triggered . | . . . . . . . . . . . . . . . . . . . . . . . . . . . . . . . . . . Most Traps Carried 1 | . . . . . . . . . . . . . . 1 1 1 . . . . . . . . . . . . . . . . . Machines | -11 -10 -10 -10 -9 -8 -8 -7 -7 -7 -7 -6 -6 -6 -6 -6 -6 -5 -5 -5 -5 -5 -4 -4 -4 -4 -4 -4 -4 -4 -3 -3 -2 -1 ---------- Run | Scr Mat Min Exi Min Mat Sto Fac Low Low Dat Pro Fac Low Low Zio Dee Pro Fac Upp Upp Zhi Pro Fac Was Fac Ext Cet Arc Hub Res Tes Res Acc Machines Disabled 24 | . . . . . . 4 . . . . . . . . . . . . . . . 1 . . . 1 . 3 9 . 5 . 1 Max in Single Turn 6 | . . . . . . 1 . . . . . . . . . . . . . . . 1 . . . . . . 6 . 1 . 1 Garrison Access 6 | . . . . . . 1 1 . . . . 1 . . . . . . . . . . . . . . . . 1 . . . 2 Network Hub 2 | . . . . . . . . . . . . . . . . . . . . . . . . . . . . . 2 . . . . Machines Sabotaged . | . . . . . . . . . . . . . . . . . . . . . . . . . . . . . . . . . . Garrisons Compromised . | . . . . . . . . . . . . . . . . . . . . . . . . . . . . . . . . . . Overloaded Fab Kills . | . . . . . . . . . . . . . . . . . . . . . . . . . . . . . . . . . . Hacking | -11 -10 -10 -10 -9 -8 -8 -7 -7 -7 -7 -6 -6 -6 -6 -6 -6 -5 -5 -5 -5 -5 -4 -4 -4 -4 -4 -4 -4 -4 -3 -3 -2 -1 --------- Run | Scr Mat Min Exi Min Mat Sto Fac Low Low Dat Pro Fac Low Low Zio Dee Pro Fac Upp Upp Zhi Pro Fac Was Fac Ext Cet Arc Hub Res Tes Res Acc Machines Accessed 106 | . 4 . 4 . 10 15 10 2 1 4 . 10 1 . . . . 6 . . 4 1 5 . 2 6 1 . 3 1 8 2 6 Terminals 52 | . 2 . . . 8 11 4 . . . . 5 . . . . . 1 . . . 1 3 . . 4 1 . 2 1 5 1 3 Fabricators 8 | . . . . . . . 2 . . . . 2 . . . . . 2 . . . . . . . . . . . . 1 1 . Repair Stations 1 | . . . . . . 1 . . . . . . . . . . . . . . . . . . . . . . . . . . . Recycling Units 17 | . 2 . . . 2 2 2 . . . . 2 . . . . . 3 . . . . 1 . . 2 . . . . . . 1 Scanalyzers 2 | . . . . . . . . . . . . . . . . . . . . . . . . . . . . . . . 2 . . Garrison Access 10 | . . . . . . 1 2 . . . . 1 . . . . . . . . . . 1 . 2 . . . 1 . . . 2 Total Hacks 289 | . 10 . 4 . 37 29 24 2 1 31 . 25 1 . . . . 12 . . 17 7 13 . 7 16 3 . 8 3 22 3 14 Successful 204 | . 7 . 4 . 22 17 15 2 1 31 . 17 1 . . . . 7 . . 17 7 11 . 4 9 1 . 4 2 13 3 9 Failed 85 | . 3 . . . 15 12 9 . . . . 8 . . . . . 5 . . . . 2 . 3 7 2 . 4 1 9 . 5 Catastrophic 11 | . . . . . 2 4 1 . . . . . . . . . . 1 . . . . 1 . . . . . . . . . 2 Database Lockouts . | . . . . . . . . . . . . . . . . . . . . . . . . . . . . . . . . . . Manual 142 | . 8 . . . 33 12 11 . . . . 12 . . 4 . . 7 . . . . 8 . 7 15 1 . 5 1 11 3 4 Terminals 151 | . 6 . . . 32 22 12 . . . . 12 . . . . . 2 . . . 7 9 . . 13 3 . 4 3 17 2 7 Fabricators 19 | . . . . . . . 6 . . . . 7 . . . . . 3 . . . . . . . . . . . . 2 1 . Repair Stations 2 | . . . . . . 2 . . . . . . . . . . . . . . . . . . . . . . . . . . . Recycling Units 35 | . 4 . . . 5 3 4 . . . . 4 . . . . . 7 . . . . 2 . . 3 . . . . . . 3 Scanalyzers 3 | . . . . . . . . . . . . . . . . . . . . . . . . . . . . . . . 3 . . Garrison Access 23 | . . . . . . 2 2 . . . . 2 . . . . . . . . . . 2 . 7 . . . 4 . . . 4 Terminal Hacks 124 | . 2 . 4 . 9 10 6 2 1 31 . 6 1 . . . . 1 . . 17 7 4 . . 3 1 . 2 1 9 2 5 Record 27 | . . . 4 . . . . . . 11 . . . . . . . . . . 5 7 . . . . . . . . . . . Part Schematic 18 | . . . . . . . 1 . . 11 . . . . . . . . . . 4 . 2 . . . . . . . . . . Robot Schematic 6 | . . . . . . . . . . 6 . . . . . . . . . . . . . . . . . . . . . . . Robot Analysis 10 | . 2 . . . 3 . . . . . . 1 . . . . . . . . 4 . . . . . . . . . . . . Prototype ID Bank 12 | . . . . . . 1 1 . . 3 . 1 . . . . . 1 . . 4 . . . . . . . . . 1 . . Open Door 11 | . . . . . . 5 . 2 1 . . . 1 . . . . . . . . . . . . . 1 . . . . . 1 Level Access Points 2 | . . . . . . . . . . . . . . . . . . . . . . . . . . . . . . . . 1 1 Branch Access Points 4 | . . . . . 1 . . . . . . . . . . . . . . . . . . . . . . . . 1 . 1 1 Emergency Access Points 1 | . . . . . . . . . . . . . . . . . . . . . . . . . . . . . . . 1 . . Machine Index 2 | . . . . . . . . . . . . . . . . . . . . . . . . . . . . . 1 . 1 . . Terminal Index 5 | . . . . . 1 . . . . . . . . . . . . . . . . . 1 . . 1 . . . . 1 . 1 Alert Level 2 | . . . . . 1 . . . . . . . . . . . . . . . . . . . . . . . . . . . 1 Unreport Threat 14 | . . . . . 1 4 2 . . . . 3 . . . . . . . . . . . . . 2 . . 1 . 1 . . Locate Traps 1 | . . . . . 1 . . . . . . . . . . . . . . . . . . . . . . . . . . . . Hauler Manifests 3 | . . . . . 1 . 1 . . . . 1 . . . . . . . . . . . . . . . . . . . . . Zone Layout 4 | . . . . . . . 1 . . . . . . . . . . . . . . . 1 . . . . . . . 2 . . Protovariant Controls 2 | . . . . . . . . . . . . . . . . . . . . . . . . . . . . . . . 2 . . Fabricator Hacks 7 | . . . . . . . 4 . . . . 3 . . . . . . . . . . . . . . . . . . . . . Network Status 2 | . . . . . . . 1 . . . . 1 . . . . . . . . . . . . . . . . . . . . . Load Schematic 3 | . . . . . . . 2 . . . . 1 . . . . . . . . . . . . . . . . . . . . . Build 2 | . . . . . . . 1 . . . . 1 . . . . . . . . . . . . . . . . . . . . . Repair Station Hacks . | . . . . . . . . . . . . . . . . . . . . . . . . . . . . . . . . . . Recycling Unit Hacks 12 | . 2 . . . 3 1 . . . . . 1 . . . . . 2 . . . . 1 . . 1 . . . . . . 1 Report Inventory 11 | . 2 . . . 2 1 . . . . . 1 . . . . . 2 . . . . 1 . . 1 . . . . . . 1 Retrieve Components 1 | . . . . . 1 . . . . . . . . . . . . . . . . . . . . . . . . . . . . Scanalyzer . | . . . . . . . . . . . . . . . . . . . . . . . . . . . . . . . . . . Garrison Access Hacks 6 | . . . . . . 1 1 . . . . 1 . . . . . . . . . . . . . . . . 1 . . . 2 Seal Access 6 | . . . . . . 1 1 . . . . 1 . . . . . . . . . . . . . . . . 1 . . . 2 Unauthorized Hacks 55 | . 3 . . . 10 5 4 . . . . 6 . . . . . 4 . . . . 6 . 4 5 . . 1 1 4 1 1 Terminals 22 | . 1 . . . 8 2 1 . . . . 1 . . . . . . . . . . 3 . . 3 . . 1 1 1 . . Track 4 | . . . . . 2 1 . . . . . . . . . . . . . . . . . . . . . . . . 1 . . Assimilate 3 | . . . . . . . . . . . . 1 . . . . . . . . . . 1 . . 1 . . . . . . . Botnet 9 | . 1 . . . 2 1 1 . . . . . . . . . . . . . . . 2 . . . . . 1 1 . . . Disrupt 5 | . . . . . 3 . . . . . . . . . . . . . . . . . . . . 2 . . . . . . . Operators 1 | . . . . . 1 . . . . . . . . . . . . . . . . . . . . . . . . . . . . Fabricators 7 | . . . . . . . . . . . . 3 . . . . . 1 . . . . . . . . . . . . 2 1 . Report 1 | . . . . . . . . . . . . 1 . . . . . . . . . . . . . . . . . . . . . Fabnet 5 | . . . . . . . . . . . . 2 . . . . . 1 . . . . . . . . . . . . 1 1 . Haulers 1 | . . . . . . . . . . . . . . . . . . . . . . . . . . . . . . . 1 . . Repair Stations 1 | . . . . . . 1 . . . . . . . . . . . . . . . . . . . . . . . . . . . Mechanics 1 | . . . . . . 1 . . . . . . . . . . . . . . . . . . . . . . . . . . . Recycling Units 17 | . 2 . . . 2 2 2 . . . . 2 . . . . . 3 . . . . 1 . . 2 . . . . . . 1 Tunnel 17 | . 2 . . . 2 2 2 . . . . 2 . . . . . 3 . . . . 1 . . 2 . . . . . . 1 Scanalyzers 1 | . . . . . . . . . . . . . . . . . . . . . . . . . . . . . . . 1 . . Researchers 1 | . . . . . . . . . . . . . . . . . . . . . . . . . . . . . . . 1 . . Garrison Access 7 | . . . . . . . 1 . . . . . . . . . . . . . . . 2 . 4 . . . . . . . . Broadcast 1 | . . . . . . . . . . . . . . . . . . . . . . . 1 . . . . . . . . . . Reprogram 4 | . . . . . . . 1 . . . . . . . . . . . . . . . 1 . 2 . . . . . . . . Intercept 1 | . . . . . . . . . . . . . . . . . . . . . . . . . 1 . . . . . . . . Watchers 1 | . . . . . . . . . . . . . . . . . . . . . . . . . 1 . . . . . . . . Data Cores Recovered 3 | . . . . . . . 2 . . . . . . . . . . . . . . . . . . . . . 1 . . . . Used 3 | . . . . . . . 2 . . . . . . . . . . . . . . . . . . . . . 1 . . . . Hacking Detections 63 | . 2 . . . 9 8 9 . . . . 7 . . . . . 4 . . . 1 3 . 1 4 1 . 2 1 6 1 4 Full Trace Events 13 | . 1 . . . 3 3 4 . . . . 1 . . . . . 1 . . . . . . . . . . . . . . . Feedback Events . | . . . . . . . . . . . . . . . . . . . . . . . . . . . . . . . . . . Feedback Blocked . | . . . . . . . . . . . . . . . . . . . . . . . . . . . . . . . . . . Robot Schematics Acquired 9 | . . . . . . . . . . 6 . . . . 1 . . . . . . . . . . . . . . . 2 . . Robots Built . | . . . . . . . . . . . . . . . . . . . . . . . . . . . . . . . . . . Authchips . | . . . . . . . . . . . . . . . . . . . . . . . . . . . . . . . . . . Time . | . . . . . . . . . . . . . . . . . . . . . . . . . . . . . . . . . . Total Robot Build Rating . | . . . . . . . . . . . . . . . . . . . . . . . . . . . . . . . . . . Part Schematics Acquired 41 | . . . . . . . 1 . . 11 . . . . 14 . . . . . 4 . 2 . . . . . . . 9 . . Parts Built 3 | . . . . . . . 2 . . . . 1 . . . . . . . . . . . . . . . . . . . . . Authchips . | . . . . . . . . . . . . . . . . . . . . . . . . . . . . . . . . . . Time 194 | . . . . . . . 42 . . . . 152 . . . . . . . . . . . . . . . . . . . . . Total Part Build Rating 13 | . . . . . . . 8 . . . . 5 . . . . . . . . . . . . . . . . . . . . . Parts Repaired . | . . . . . . . . . . . . . . . . . . . . . . . . . . . . . . . . . . Time . | . . . . . . . . . . . . . . . . . . . . . . . . . . . . . . . . . . Parts Recycled . | . . . . . . . . . . . . . . . . . . . . . . . . . . . . . . . . . . Recycled Matter . | . . . . . . . . . . . . . . . . . . . . . . . . . . . . . . . . . . Retrieved Matter . | . . . . . . . . . . . . . . . . . . . . . . . . . . . . . . . . . . Retrieved Components 2 | . . . . . 2 . . . . . . . . . . . . . . . . . . . . . . . . . . . . Parts Scanalyzed . | . . . . . . . . . . . . . . . . . . . . . . . . . . . . . . . . . . Part Schematics Acquired . | . . . . . . . . . . . . . . . . . . . . . . . . . . . . . . . . . . Parts Damaged . | . . . . . . . . . . . . . . . . . . . . . . . . . . . . . . . . . . Bothacking | -11 -10 -10 -10 -9 -8 -8 -7 -7 -7 -7 -6 -6 -6 -6 -6 -6 -5 -5 -5 -5 -5 -4 -4 -4 -4 -4 -4 -4 -4 -3 -3 -2 -1 ------------ Run | Scr Mat Min Exi Min Mat Sto Fac Low Low Dat Pro Fac Low Low Zio Dee Pro Fac Upp Upp Zhi Pro Fac Was Fac Ext Cet Arc Hub Res Tes Res Acc Used RIF Installer . | . . . . . . . . . . . . . . . . . . . . . . . . . . . . . . . . . . Robots Hacked 5 | . . . . . . . . . . . . . . . . . 1 . . 1 . . . . . . . . 2 . . 1 . Non-combat . | . . . . . . . . . . . . . . . . . . . . . . . . . . . . . . . . . . Combat 5 | . . . . . . . . . . . . . . . . . 1 . . 1 . . . . . . . . 2 . . 1 . Robot Hacks Applied . | . . . . . . . . . . . . . . . . . . . . . . . . . . . . . . . . . . Relay Couplers Released . | . . . . . . . . . . . . . . . . . . . . . . . . . . . . . . . . . . Fabnet Peak Effective % 6 | . . . . . . . . . . . . . . . . . 6 6 6 6 6 5 5 5 5 5 5 5 5 1 1 3 4 Autooverrided 5 | . . . . . . . . . . . . . . . . . 1 . . 1 . . . . . . . . 2 . . 1 . Robots Rewired 11 | . . . . . . . . . . . . . . . . . . . . . . . . . . 11 . . . . . . . Allies Hacked 1 | . . . . . . . . . . . . . . . . . . . . . . . . . . 1 . . . . . . . Hacks Repelled . | . . . . . . . . . . . . . . . . . . . . . . . . . . . . . . . . . . Allies | -11 -10 -10 -10 -9 -8 -8 -7 -7 -7 -7 -6 -6 -6 -6 -6 -6 -5 -5 -5 -5 -5 -4 -4 -4 -4 -4 -4 -4 -4 -3 -3 -2 -1 -------- Run | Scr Mat Min Exi Min Mat Sto Fac Low Low Dat Pro Fac Low Low Zio Dee Pro Fac Upp Upp Zhi Pro Fac Was Fac Ext Cet Arc Hub Res Tes Res Acc Total Allies 51 | . . 3 . . . . 3 . . . 1 1 . . 7 . 1 . . 1 . . 5 . . 21 5 . 2 . . 1 . Largest Group 14 | . . 3 3 3 . . 3 . . . 1 1 1 . 7 7 2 1 . 1 . . 4 . . 14 12 9 9 . . 1 . Highest-Rated Group 874 | . . 40 40 40 . . 48 . . . 96 26 26 . 178 178 48 20 . 41 . . 188 . . 673 874 692 678 . . 30 . Highest-Rated Ally 159 | . . 16 16 16 . . 16 . . . 96 26 26 . 31 31 28 20 . 41 . . 47 . . 159 159 146 137 . . 30 . Total Orders . | . . . . . . . . . . . . . . . . . . . . . . . . . . . . . . . . . . Ally Attacks 331 | . . 12 . 28 . . 27 . . . 12 . . . . 53 7 . . . . . . . . 67 58 19 45 . . 3 . Total Damage 11378 | . . 177 . 255 . . 272 . . . 645 . . . . 1074 175 . . . . . . . . 2387 2395 611 3344 . . 43 . Kills 67 | . . 1 . 6 . . 4 . . . 5 . . . . 7 1 . . . . . . . . 17 11 3 12 . . . . Allies Corrupted 5 | . . . . . . . . . . . . . . . . . . . . . . . . . . 3 . . 2 . . . . Allies Melted . | . . . . . . . . . . . . . . . . . . . . . . . . . . . . . . . . . . Intel | -11 -10 -10 -10 -9 -8 -8 -7 -7 -7 -7 -6 -6 -6 -6 -6 -6 -5 -5 -5 -5 -5 -4 -4 -4 -4 -4 -4 -4 -4 -3 -3 -2 -1 ------- Run | Scr Mat Min Exi Min Mat Sto Fac Low Low Dat Pro Fac Low Low Zio Dee Pro Fac Upp Upp Zhi Pro Fac Was Fac Ext Cet Arc Hub Res Tes Res Acc Robot Analysis Total 10 | . 2 . . . 3 . . . . . . 1 . . . . . . . . 4 . . . . . . . . . . . . Derelict Logs Recovered 6 | . . 1 . . . . . . 1 . 1 . 1 . . . 1 . . . . 1 . . . . . . . . . . . Drone Launches . | . . . . . . . . . . . . . . . . . . . . . . . . . . . . . . . . . . Drone Recoveries . | . . . . . . . . . . . . . . . . . . . . . . . . . . . . . . . . . . Exploration | -11 -10 -10 -10 -9 -8 -8 -7 -7 -7 -7 -6 -6 -6 -6 -6 -6 -5 -5 -5 -5 -5 -4 -4 -4 -4 -4 -4 -4 -4 -3 -3 -2 -1 ------------- Run | Scr Mat Min Exi Min Mat Sto Fac Low Low Dat Pro Fac Low Low Zio Dee Pro Fac Upp Upp Zhi Pro Fac Was Fac Ext Cet Arc Hub Res Tes Res Acc Turns Passed 10728 | 30 322 218 194 253 667 824 881 349 230 34 576 645 228 92 348 481 286 205 87 137 83 184 141 32 157 828 343 80 421 170 585 180 437 Spaces Moved 15426 | 28 392 322 425 368 746 709 1354 512 572 89 632 791 406 194 700 547 304 371 219 176 169 338 361 102 233 835 202 59 669 322 1168 300 811 Core 35 | 28 7 . . . . . . . . . . . . . . . . . . . . . . . . . . . . . . . . Treads . | . . . . . . . . . . . . . . . . . . . . . . . . . . . . . . . . . . Legs . | . . . . . . . . . . . . . . . . . . . . . . . . . . . . . . . . . . Wheels . | . . . . . . . . . . . . . . . . . . . . . . . . . . . . . . . . . . Hover 13613 | . . . . . 468 709 1354 512 572 89 632 791 406 194 700 547 304 371 219 176 169 338 361 102 233 835 202 59 669 322 1168 300 811 Flight 1778 | . 385 322 425 368 278 . . . . . . . . . . . . . . . . . . . . . . . . . . . . Fastest Speed 14 | 50 31 31 31 31 28 22 38 38 38 38 38 38 38 38 38 36 36 30 32 32 32 30 14 30 30 14 30 30 30 30 14 14 28 Average Speed 35 | 50 31 31 31 31 34 37 38 38 38 38 64 41 39 38 39 37 36 35 32 32 32 31 27 30 30 27 30 30 30 30 29 29 28 Slowest Speed 115 | 50 50 31 31 31 115 106 42 38 38 38 98 98 98 38 40 45 36 100 32 32 38 34 30 30 30 30 30 30 30 34 88 34 28 Overloaded Moves 279 | . . . . . . 13 . . . . 2 . . . . . . . . . . . 58 . . 123 . . . . 76 7 . Propulsion Burnouts . | . . . . . . . . . . . . . . . . . . . . . . . . . . . . . . . . . . Robots Hopped 6 | . 2 . . 3 1 . . . . . . . . . . . . . . . . . . . . . . . . . . . . Cave-ins Triggered 2 | . . . . . . . 1 . . . . . . . . . . . . 1 . . . . . . . . . . . . . Teleports 1 | . . . . . . . . . . . . . . . . . . . . . . . . . . . . . . . 1 . . Exploration Rate (%) 54 | 3 74 77 91 66 61 90 35 64 80 72 69 24 60 41 81 68 53 13 43 36 60 61 15 81 9 84 66 72 56 14 92 14 20 Regions Visited 33 Branch Regions 22 Pre-discovered Areas 26 | . 2 . . . 2 2 2 . . 1 . 2 . . 3 . . 3 . . 3 2 1 . . 2 . . . . . . 1 Known Exits Taken 27 | . 1 . . . 1 1 1 1 1 1 1 1 1 1 1 1 1 1 1 1 1 1 . . 1 1 1 1 1 1 1 1 . Unknown Exits Taken 4 | 1 . 1 1 1 . . . . . . . . . . . . . . . . . . . . . . . . . . . . . Scrap Searched 20 | . . 1 . 2 . . . 2 2 . 1 . 3 2 2 . 1 . . 3 . 1 . . . . . . . . . . . Spaces Dug 161 | . . . . 2 5 14 24 3 2 . 4 8 9 . 1 4 3 7 2 2 . 4 7 . 5 . . . 5 5 22 1 22 Terrain Destroyed 518 | . . . . 2 5 14 24 3 2 . 4 8 9 . 1 4 3 7 2 2 . 4 7 . 5 . . . 362 5 22 1 22 Melee 161 | . . . . 2 5 14 24 3 2 . 4 8 9 . 1 4 3 7 2 2 . 4 7 . 5 . . . 5 5 22 1 22 Projectile . | . . . . . . . . . . . . . . . . . . . . . . . . . . . . . . . . . . AOE 357 | . . . . . . . . . . . . . . . . . . . . . . . . . . . . . 357 . . . . Terrain Rammed . | . . . . . . . . . . . . . . . . . . . . . . . . . . . . . . . . . . Walls Destroyed . | . . . . . . . . . . . . . . . . . . . . . . . . . . . . . . . . . . Machines Disabled . | . . . . . . . . . . . . . . . . . . . . . . . . . . . . . . . . . . Actions | -11 -10 -10 -10 -9 -8 -8 -7 -7 -7 -7 -6 -6 -6 -6 -6 -6 -5 -5 -5 -5 -5 -4 -4 -4 -4 -4 -4 -4 -4 -3 -3 -2 -1 --------- Run | Scr Mat Min Exi Min Mat Sto Fac Low Low Dat Pro Fac Low Low Zio Dee Pro Fac Upp Upp Zhi Pro Fac Was Fac Ext Cet Arc Hub Res Tes Res Acc Total 19362 | 36 516 415 486 462 999 1029 1611 662 580 88 771 1037 460 206 763 789 456 420 231 252 198 400 384 103 297 1347 456 114 804 361 1335 357 937 Wait 2284 | . 51 64 62 64 59 84 113 140 . . 87 153 39 6 51 191 133 9 11 73 4 54 6 . 25 353 226 46 45 6 67 . 62 Move 15383 | 27 388 321 424 361 743 708 1353 511 571 88 631 790 405 193 699 546 303 370 218 175 168 337 361 101 232 834 201 58 669 321 1167 299 810 Hop 5 | . 1 . . 3 1 . . . . . . . . . . . . . . . . . . . . . . . . . . . . Pick Up 59 | . 2 1 . 1 8 5 8 3 1 . 4 5 . 1 2 1 1 2 . 1 4 . . 1 . 1 . . 3 . 3 1 . Fast Attach 125 | 3 7 3 . 1 16 9 8 . 1 . 3 4 1 1 2 10 . 8 . . 7 . 3 . 6 . . . 5 4 16 6 1 Attach 30 | . 1 1 . . 2 . 4 1 . . 4 1 3 . 2 . . 1 . . 1 1 . . . . . . 2 2 2 1 1 Detach 41 | . 3 2 . . 6 1 6 . 1 . 4 1 2 1 . 2 . 1 . . . . 1 . 1 . . . 3 2 3 . 1 Swap 28 | . . . . 1 3 3 3 . 1 . 4 2 . 1 . 2 . 1 . . 2 . . . . . . . 2 2 1 . . Drop 141 | . 4 1 . 3 21 11 12 3 2 . 5 8 . . 2 11 1 10 . 1 12 . 2 1 5 1 . . 4 1 16 4 . Fire 18 | 6 . . . . . . . . . . 9 . . . . . . . . . . . . . . . . . 3 . . . . Melee 834 | . 41 14 . 24 103 157 75 3 3 . 12 48 10 3 5 21 14 15 2 2 . 8 11 . 14 51 16 4 52 16 40 19 51 Ram 2 | . . . . . . . . . . . . . . . . . . . . . . . . . . 1 . . 1 . . . . Kick . | . . . . . . . . . . . . . . . . . . . . . . . . . . . . . . . . . . Crush . | . . . . . . . . . . . . . . . . . . . . . . . . . . . . . . . . . . Escape Stasis 29 | . . . . . . . . . . . . . . . . . . . . . . . . . 4 4 . . . . 15 6 . Rewire 66 | . . . . . . . . . . . . . . . . . . . . . . . . . . 66 . . . . . . . Trap . | . . . . . . . . . . . . . . . . . . . . . . . . . . . . . . . . . . Miscellaneous 317 | . 18 8 . 4 37 51 29 1 . . 8 25 . . . 5 4 3 . . . . . . 10 36 13 6 15 7 5 21 11 Route ------- -11/Scrapyard -10/Materials (discovered 2 exits: *Mat / *Min) -10/Mines (discovered 2 exits: *Mat / *Exi) -10/Exiles (discovered 2 exits: [*Min x2]) -9/Mines -8/Materials (discovered 3 exits: *Fac / *Sto x2) -8/Storage (discovered 2 exits: *Fac / [Rec]) -7/Factory (discovered 3 exits: *Fac / *Low x2) -7/Lower Caves -7/Lower Caves (discovered 2 exits: *Fac / *Dat) -7/Data Miner -6/Proximity Caves -6/Factory (discovered 2 exits: *Fac / *Low) -6/Lower Caves -6/Lower Caves (discovered 2 exits: Fac / *Zio) -6/Zion (discovered 2 exits: *Dee / [*Pro]) -6/Deep Caves -5/Proximity Caves -5/Factory (discovered 3 exits: *Fac x2 / *Upp) -5/Upper Caves -5/Upper Caves -5/Zhirov -4/Proximity Caves -4/Factory -4/Waste -4/Factory (discovered 2 exits: *Upp / *Ext) -4/Extension (discovered 3 exits: *Res x2 / *Cet) -4/Cetus (discovered 2 exits: *Res / *Arc) -4/Archives (discovered 3 exits: *Res / *Hub x2) -4/Hub_04(d) (discovered 3 exits: *Res x3) -3/Research (discovered 3 exits: Arm / *Tes x2) -3/Testing -2/Research (discovered 5 exits: *Acc x3 / Qua x2) -1/Access (discovered 2 exits: *Sur / Com) To Epsilon Eridani History --------- Turn | Location | Event 2 | -11/Scrapyard | Met Revision 17 18 | -11/Scrapyard | Discovered new exit (range 12) 31 | -11/Scrapyard | Entered Materials 38 | -10/Materials | Upgraded with Propulsion slot (x1) 42 | -10/Materials | Upgraded with Propulsion slot (x2) 227 | -10/Materials | Discovered new exit (range 14) 288 | -10/Materials | Reached level 2 303 | -10/Materials | Discovered new exit (range 13) 337 | -10/Materials | Build established: Sprinter 353 | -10/Materials | Identified exit to Mines 353 | -10/Materials | Entered Mines 390 | -10/Mines | Identified exit to Materials 465 | -10/Mines | Assisted by bots powering up and referring to "LRC-V3" 509 | -10/Mines | Reached level 3 515 | -10/Mines | Upgraded with Utility slot (x2) 538 | -10/Mines | Deemed a non-threat by the Exiles lab entrance 538 | -10/Mines | Discovered new exit (range 5) 571 | -10/Mines | Entered Exiles 571 | -10/Exiles | Found Exiles lab abandoned 571 | -10/Exiles | Accompanied by 3 allies 576 | -10/Exiles | Discovered new exit (range 15) 700 | -10/Exiles | Discovered new exit (range 14) 765 | -10/Exiles | Entered Mines 765 | -9/Mines | Accompanied by 3 allies 884 | -9/Mines | Assembled infested the area 889 | -9/Mines | Assisted by a Guerilla fighting off Assembled 939 | -9/Mines | Discovered new exit (range 8) 983 | -9/Mines | Reached level 4 1018 | -9/Mines | Entered Materials 1020 | -8/Materials | Reached level 5 1027 | -8/Materials | Upgraded with Utility slot (x1) 1127 | -8/Materials | Upgraded with Utility slot (x1) 1147 | -8/Materials | Identified exit to Storage 1306 | -8/Materials | Reached level 6 1388 | -8/Materials | Build established: Mutant 1492 | -8/Materials | Reached level 7 1558 | -8/Materials | Discovered new exit (range 15) 1685 | -8/Materials | Entered Storage 1687 | -8/Storage | Reached level 8 1701 | -8/Storage | Found Prototype Processor 1701 | -8/Storage | Identified Exp. Targeting Computer 1765 | -8/Storage | Discovered new exit (range 15) 1817 | -8/Storage | Build established: Scout 1852 | -8/Storage | Reached level 9 2014 | -8/Storage | Reached level 10 2074 | -8/Storage | Garrison activated, responded to threat 2085 | -8/Storage | First assault squad dispatched 2164 | -8/Storage | Reached level 11 2235 | -8/Storage | Discovered new exit (range 14) 2508 | -8/Storage | Identified exit to Factory 2509 | -8/Storage | Entered Factory 2511 | -7/Factory | Reached level 12 2511 | -7/Factory | Upgraded with Utility slot (x1) 2534 | -7/Factory | Reached level 13 2563 | -7/Factory | Upgraded with Utility slot (x1) 2592 | -7/Factory | Discovered new exit (range 14) 2640 | -7/Factory | Identified exit to Lower Caves 2791 | -7/Factory | Discovered exit to Lower Caves (range 15) 2886 | -7/Factory | Fabricated Powered Armor (x2) 3204 | -7/Factory | Reached level 14 3254 | -7/Factory | Discovered new exit (range 16) 3276 | -7/Factory | Identified exit to Factory 3283 | -7/Factory | Crushed by falling debris 3390 | -7/Factory | Entered Lower Caves 3396 | -7/Lower Caves | Encountered a Warlord checkpoint 3721 | -7/Lower Caves | Discovered new exit (range 14) 3725 | -7/Lower Caves | Identified exit to Lower Caves 3739 | -7/Lower Caves | Entered another Lower Caves area 3741 | -7/Lower Caves | Reached level 15 3755 | -7/Lower Caves | Encountered a Warlord checkpoint 3790 | -7/Lower Caves | Discovered exit to Factory (range 9) 3883 | -7/Lower Caves | Discovered new exit (range 15) 3888 | -7/Lower Caves | Identified exit to Data Miner 3962 | -7/Lower Caves | Learned Factory trap positions 3969 | -7/Lower Caves | Entered Data Miner 3969 | -7/Data Miner | Discovered new exit (range 6) 3977 | -7/Data Miner | Met Data Miner 3989 | -7/Data Miner | Learned location of Section 7 (-2) 3989 | -7/Data Miner | Acquired the access code to Warlord's prototype stash 3993 | -7/Data Miner | Received God Mode back door access code from Data Miner 4003 | -7/Data Miner | Identified exit to Proximity Caves 4003 | -7/Data Miner | Entered Proximity Caves 4017 | -6/Proximity Caves | Reached level 16 4021 | -6/Proximity Caves | Escorted by Enhanced Grunt 4022 | -6/Proximity Caves | Upgraded with Utility slot (x1) 4201 | -6/Proximity Caves | Found Imp. Powered Armor 4232 | -6/Proximity Caves | System corruption reached 10% 4482 | -6/Proximity Caves | Build established: Assassin 4498 | -6/Proximity Caves | Attracted the attention of an 0b10 outpost 4561 | -6/Proximity Caves | Discovered exit to Factory (range 15) 4579 | -6/Proximity Caves | Entered Factory 4580 | -6/Factory | Identified exit to Lower Caves 4581 | -6/Factory | Loaded intel: 89 trap records 4581 | -6/Factory | Reached level 17 4663 | -6/Factory | Reached level 18 4697 | -6/Factory | Upgraded with Power slot (x1) 4755 | -6/Factory | Fabricated Gravity Neutralizer (x1) 4885 | -6/Factory | Incoming investigation squad redirected 5049 | -6/Factory | Incoming investigation squad redirected 5053 | -6/Factory | Build established: Hacker-Scout 5151 | -6/Factory | Discovered new exit (range 9) 5154 | -6/Factory | Identified exit to Factory 5224 | -6/Factory | Entered Lower Caves 5224 | -6/Lower Caves | Accompanied by 1 ally 5294 | -6/Lower Caves | Encountered a Warlord checkpoint 5332 | -6/Lower Caves | Found Alien Artifact 5332 | -6/Lower Caves | Identified Core Expander 5332 | -6/Lower Caves | Installed Core Expander, added new Weapon slot 5437 | -6/Lower Caves | Discovered new exit (range 9) 5444 | -6/Lower Caves | Identified exit to Lower Caves 5452 | -6/Lower Caves | Entered another Lower Caves area 5479 | -6/Lower Caves | Discovered exit to Factory (range 15) 5535 | -6/Lower Caves | Discovered new exit (range 13) 5539 | -6/Lower Caves | Identified exit to Zion 5544 | -6/Lower Caves | Entered Zion 5546 | -6/Zion | Reached level 19 5568 | -6/Zion | Discovered new exit (range 16) 5619 | -6/Zion | Upgraded with Propulsion slot (x1) 5626 | -6/Zion | Found CR-A16's Pointy Stick 5693 | -6/Zion | Acquired unknown access codes intercepted by a Zionite 5731 | -6/Zion | Learned location of Warlord (-4) 5744 | -6/Zion | Gained Derelict followers 5752 | -6/Zion | Gained Derelict followers 5779 | -6/Zion | Upgraded with Weapon slot (x1) 5840 | -6/Zion | Discovered new exit (range 12) 5856 | -6/Zion | Opened final containment barrier to the Deep Caves 5862 | -6/Zion | Saw the warning signs outside the Deep Caves entrance 5863 | -6/Zion | Identified exit to Deep Caves 5892 | -6/Zion | Entered Deep Caves 5892 | -6/Deep Caves | Accompanied by 7 allies 5938 | -6/Deep Caves | Attacked by Z-Imprinter 5968 | -6/Deep Caves | Destroyed Z-Imprinter 5997 | -6/Deep Caves | Found Prototype Protection 5997 | -6/Deep Caves | Identified Zio. Weapon Casing 6118 | -6/Deep Caves | Z-Facility disabled 6271 | -6/Deep Caves | Build established: Scavenger-Scout 6316 | -6/Deep Caves | Discovered new exit (range 6) 6317 | -6/Deep Caves | Identified exit to Proximity Caves 6328 | -6/Deep Caves | Found Surveybot 24 Scanner 6373 | -6/Deep Caves | Entered Proximity Caves 6373 | -5/Proximity Caves | Accompanied by 2 allies 6375 | -5/Proximity Caves | Reached level 20 6376 | -5/Proximity Caves | Learned Factory stockpile data 6506 | -5/Proximity Caves | Destroyed 7 combat bots 6521 | -5/Proximity Caves | Discovered exit to Factory (range 22) 6525 | -5/Proximity Caves | Spotted B-75 Beast 6542 | -5/Proximity Caves | Revealed the true nature of CR-A16's Pointy Stick 6545 | -5/Proximity Caves | Destroyed B-75 Beast 6634 | -5/Proximity Caves | Build established: Hacker-Scout 6659 | -5/Proximity Caves | Entered Factory 6659 | -5/Factory | Accompanied by 1 ally 6660 | -5/Factory | Identified exit to Upper Caves 6661 | -5/Factory | Reached level 21 6661 | -5/Factory | Upgraded with Utility slot (x1) 6664 | -5/Factory | Discovered new exit (range 2) 6665 | -5/Factory | Identified exit to Factory 6705 | -5/Factory | Incoming investigation squad redirected 6727 | -5/Factory | Discovered exit to Factory (range 24) 6737 | -5/Factory | Spotted B-75 Beast 6738 | -5/Factory | Destroyed B-75 Beast 6769 | -5/Factory | Incoming investigation squad redirected 6864 | -5/Factory | Entered Upper Caves 6945 | -5/Upper Caves | Discovered new exit (range 14) 6950 | -5/Upper Caves | Identified exit to Upper Caves 6951 | -5/Upper Caves | Entered another Upper Caves area 6953 | -5/Upper Caves | Reached level 22 7066 | -5/Upper Caves | Discovered new exit (range 11) 7085 | -5/Upper Caves | Crushed by falling debris 7087 | -5/Upper Caves | Identified exit to Zhirov 7088 | -5/Upper Caves | Entered Zhirov 7088 | -5/Zhirov | Discovered new exit (range 3) 7094 | -5/Zhirov | Met Zhirov 7100 | -5/Zhirov | Learned location of Command (-1) 7103 | -5/Zhirov | Zhirov requested help retrieving the SGEMP Prototype 7109 | -5/Zhirov | Found Alien Artifact 7114 | -5/Zhirov | Found Alien Artifact 7116 | -5/Zhirov | Identified Integrated Reactor 7116 | -5/Zhirov | Installed Integrated Reactor, increased core energy generation (+10) 7171 | -5/Zhirov | Identified exit to Proximity Caves 7171 | -5/Zhirov | Entered Proximity Caves 7233 | -4/Proximity Caves | Reached level 23 7241 | -4/Proximity Caves | Upgraded with Propulsion slot (x1) 7342 | -4/Proximity Caves | Discovered exit to Factory (range 9) 7353 | -4/Proximity Caves | Learned 8 Factory zone layouts 7353 | -4/Proximity Caves | Learned Research emergency access door positions 7353 | -4/Proximity Caves | Learned Armory stockpile data 7353 | -4/Proximity Caves | Learned Research security intel 7353 | -4/Proximity Caves | Learned Research terminal intel 7354 | -4/Proximity Caves | Attracted the attention of an 0b10 base 7355 | -4/Proximity Caves | Entered Factory 7356 | -4/Factory | Identified exit to Research 7452 | -4/Factory | Found Prototype Device 7452 | -4/Factory | Identified Exp. ECM Suite 7496 | -4/Factory | Sucked down chute 7496 | -4/Factory | Entered Waste 7497 | -4/Waste | Spotted C-40 Crusher 7498 | -4/Waste | Reached level 24 7499 | -4/Waste | Spotted C-40 Crusher 7507 | -4/Waste | Spotted C-40 Crusher 7511 | -4/Waste | EMP discharged 7519 | -4/Waste | Spotted C-40 Crusher 7519 | -4/Waste | Spotted C-40 Crusher 7522 | -4/Waste | Spotted C-40 Crusher 7524 | -4/Waste | Discovered new exit (range 16) 7528 | -4/Waste | Identified exit to Factory 7528 | -4/Waste | Entered Factory 7562 | -4/Factory | Found Prototype Slashing Weapon 7562 | -4/Factory | Identified Molecular Scythe 7567 | -4/Factory | Found Prototype Processor 7567 | -4/Factory | Identified Exp. Signal Interpreter 7636 | -4/Factory | Discovered new exit (range 11) 7640 | -4/Factory | Identified exit to Upper Caves 7680 | -4/Factory | Discovered new exit (range 16) 7684 | -4/Factory | Identified exit to Extension 7685 | -4/Factory | Entered Extension 7694 | -4/Extension | Rescued a captive Derelict 7718 | -4/Extension | Rescued A7 7742 | -4/Extension | Incoming investigation squad redirected 7769 | -4/Extension | Rescued a captive Derelict 7769 | -4/Extension | Rescued a captive Derelict 7859 | -4/Extension | Reached level 25 8197 | -4/Extension | Spotted B-86 Titan 8199 | -4/Extension | Spotted B-86 Titan 8201 | -4/Extension | Destroyed B-86 Titan 8206 | -4/Extension | Destroyed B-86 Titan 8233 | -4/Extension | Discovered exit to Research (range 8) 8245 | -4/Extension | Rescued a captive Derelict 8262 | -4/Extension | Rescued a captive Derelict 8323 | -4/Extension | Rescued a captive Derelict 8324 | -4/Extension | Rescued a captive Derelict 8369 | -4/Extension | Rescued a captive Derelict 8375 | -4/Extension | Rescued a captive Derelict 8432 | -4/Extension | Incoming investigation squad redirected 8434 | -4/Extension | Discovered new exit (range 14) 8440 | -4/Extension | Discovered exit to Research (range 18) 8478 | -4/Extension | Identified exit to Cetus 8513 | -4/Extension | Entered Cetus 8513 | -4/Cetus | Accompanied by 8 allies (A7) 8515 | -4/Cetus | Reached level 26 8518 | -4/Cetus | Acquired a Cetus Manufacturing Module code from A7 8518 | -4/Cetus | Spotted Cetus Guard 8518 | -4/Cetus | Spotted Cetus Guard 8518 | -4/Cetus | Spotted Cetus Guard 8519 | -4/Cetus | Spotted Cetus Guard 8535 | -4/Cetus | Destroyed Cetus Guard 8537 | -4/Cetus | Allies destroyed Cetus Guard 8541 | -4/Cetus | Destroyed Cetus Guard 8544 | -4/Cetus | Allies destroyed Cetus Guard 8546 | -4/Cetus | System corruption reached 10% 8562 | -4/Cetus | Started Cetus Manufacturing Module 8575 | -4/Cetus | Escorted A7 to Cetus Mainframe 8587 | -4/Cetus | Manufactured an Enhanced Grunt 8598 | -4/Cetus | Discovered new exit (range 16) 8612 | -4/Cetus | Manufactured an Enhanced Grunt 8637 | -4/Cetus | Manufactured an Enhanced Grunt 8662 | -4/Cetus | Manufactured an Enhanced Grunt 8687 | -4/Cetus | Manufactured an Enhanced Grunt 8781 | -4/Cetus | Spotted Cetus Guard 8781 | -4/Cetus | Spotted Cetus Guard 8782 | -4/Cetus | Discovered exit to Research (range 21) 8782 | -4/Cetus | Spotted Cetus Guard 8785 | -4/Cetus | Spotted Cetus Guard 8791 | -4/Cetus | Allies destroyed Cetus Guard 8792 | -4/Cetus | Destroyed Cetus Guard 8799 | -4/Cetus | Allies destroyed Cetus Guard 8800 | -4/Cetus | Allies destroyed Cetus Guard 8801 | -4/Cetus | Met Revision 17 8820 | -4/Cetus | Identified exit to Archives 8856 | -4/Cetus | Entered Archives 8856 | -4/Archives | Accompanied by 9 allies (A7) 8860 | -4/Archives | Discovered new exit (range 24) 8861 | -4/Archives | Received a hacking code to weaken MAIN.C 8880 | -4/Archives | Discovered new exit (range 15) 8880 | -4/Archives | Discovered exit to Research (range 16) 8899 | -4/Archives | Identified exit to Hub_04(d) 8936 | -4/Archives | Entered Hub_04(d) 8936 | -4/Hub_04(d) | Accompanied by 8 allies 8938 | -4/Hub_04(d) | Reached level 27 8951 | -4/Hub_04(d) | Spotted B-86 Titan 8953 | -4/Hub_04(d) | Destroyed B-86 Titan 8962 | -4/Hub_04(d) | Upgraded with Utility slot (x1) 8985 | -4/Hub_04(d) | Found Prototype Processor 8985 | -4/Hub_04(d) | Identified Exp. Terrain Scan Processor 9022 | -4/Hub_04(d) | Discovered exit to Research (range 21) 9025 | -4/Hub_04(d) | Discovered exit to Research (range 23) 9031 | -4/Hub_04(d) | Local machine network offline 9106 | -4/Hub_04(d) | Discovered exit to Research (range 6) 9226 | -4/Hub_04(d) | Network Hub disabled 9229 | -4/Hub_04(d) | Network Hub disabled 9229 | -4/Hub_04(d) | Spotted Lightning 9229 | -4/Hub_04(d) | Spotted Lightning 9239 | -4/Hub_04(d) | High security lockdown imminent 9299 | -4/Hub_04(d) | Spotted Lightning 9319 | -4/Hub_04(d) | High security lockdown engaged 9323 | -4/Hub_04(d) | Destroyed Lightning 9328 | -4/Hub_04(d) | Found Prototype Device 9328 | -4/Hub_04(d) | Identified Exp. Phase Shifter 9331 | -4/Hub_04(d) | Found Prototype Device 9331 | -4/Hub_04(d) | Identified Exp. EM Disruption Field 9357 | -4/Hub_04(d) | Entered Research 9359 | -3/Research | Reached level 28 9360 | -3/Research | Loaded intel: 23 terminal locations 9364 | -3/Research | Upgraded with Power slot (x1) 9422 | -3/Research | Identified exit to Armory 9422 | -3/Research | Identified exit to Testing 9491 | -3/Research | Found Prototype Processor 9491 | -3/Research | Identified Exp. Target Analyzer 9527 | -3/Research | Entered Testing 9558 | -3/Testing | Found Prototype Ballistic Gun 9558 | -3/Testing | Identified Hyp. Multirail 9576 | -3/Testing | Protovariant out of control (PG-J39V9OBWQ2) 9576 | -3/Testing | Unleashed a protovariant (PG-J39V9OBWQ2) 9592 | -3/Testing | Incoming assault squad redirected 9662 | -3/Testing | Build established: Generator-Sprinter 9677 | -3/Testing | Spotted PG-J39V9OBWQ2 9725 | -3/Testing | Reached level 29 9729 | -3/Testing | Found Prototype Energy Cannon 9729 | -3/Testing | Identified Disintegrator 9804 | -3/Testing | Spotted Striker 9807 | -3/Testing | First assault squad dispatched 9901 | -3/Testing | Incoming assault squad redirected 10031 | -3/Testing | Spotted Investigator 10039 | -3/Testing | Found Prototype Hackware 10041 | -3/Testing | Scanned by Researcher 10061 | -3/Testing | Identified Transdimensional Reconstructor 10061 | -3/Testing | Warped through subspace 10109 | -3/Testing | Discovered new exit (range 3) 10112 | -3/Testing | Identified exit to Research 10112 | -3/Testing | Entered Research 10114 | -2/Research | Reached level 30 10132 | -2/Research | Spotted B-90 Cyclops 10135 | -2/Research | Destroyed B-90 Cyclops 10142 | -2/Research | Identified System Mapper 10164 | -2/Research | Identified exit to Access 10164 | -2/Research | Identified exit to Quarantine 10170 | -2/Research | Incoming investigation squad redirected 10173 | -2/Research | Spotted B-90 Cyclops 10175 | -2/Research | Destroyed B-90 Cyclops 10282 | -2/Research | Local machine network offline 10292 | -2/Research | Entered Access 10294 | -1/Access | Reached level 31 10317 | -1/Access | Identified exit to Command 10385 | -1/Access | Identified exit to Surface 10446 | -1/Access | Build established: Hacker-Scout 10609 | -1/Access | Spotted B-99 Colossus 10609 | -1/Access | Spotted B-99 Colossus 10609 | -1/Access | Reached level 32 10609 | -1/Access | Destroyed B-99 Colossus 10630 | -1/Access | Destroyed B-99 Colossus 10729 | *** | Escaped! Last Messages --------------- Connecting with Recycling Unit... >>Recycling(Report) Matter reserves: 0 Inventory: Arm. Heavy Treads (43%) Adv. Visual Processing Unit (100%) Adv. Signal Interpreter (83%) Antigrav System (83%) Antigrav System (96%) Lgt. Antimatter Reactor (78%) Lgt. Antimatter Reactor (85%) >>Force(Tunnel) DISCOVERED[-1/Access] ALERT: Suspicious activity at Recycling Unit A002. Dispatching Investigation squad. Sneak attack on A-15 Conveyor. Plasma Lance follow-up attack on A-15 Conveyor. CR-A16's Behemoth Slayer follow-up attack on A-15 Conveyor. A-15 Conveyor suffers critical hit (Impale). A-15 Conveyor destroyed. Map ----- +----------------------------------------------------+ | #?######### ############ ## "" ##??#????????? | | ?# # # S ###?##???????? | | #? # + "" # ?"?"? ????? | | ??? # ##########+#### "" # "?R?? ???? | | ## ## ### # "" # ???? ?????? | | ?# ## ### [ # # ?? ? ???? | | ## ## ### # # ? #??? | | #? ?? ## ### # # ??????? | | #? ## ### # # ? ?????#? | | ## ? ## ##########"############ ? ?#?? | | #?######+### ###########;#################+### | | ##### % | | ##### | | ############## ""#####+########?#??? | | ############## ""### ######? | | ##### ##?########### ""### ###### p | | ##### ############## T### ####?? | | #####k ############## ""### " ###### | | ##### ## #### ""### """ #####? k | | ## ## #### ""### """###### | | # # " ### ## " ###?## | | # # """ #### ### ####?# | | # + G #### ### ###### | | # # """ #### #######"#######?# | | * ## ## " #### ################# | | ## ## #### @" ################# | | ## k## #### "" #### # | | ## ############## #### [ # | | #+### ############## #### # | | ############## #### # | | ##############"%"""""" "#### # | | ##################### """""" ""#### + | | #####?###############" """"""""#### # | | #?################### """""""""#### ! + | | #####################!=! [! !!#### #t | | #####################!%![%!=!!!#### # | | ##??#?###############!!! R!][ #### # | | ####?################ ] #### # | | ####?#?############## ################# | | ? ################ ################# | | ? ?############### ################# | | ? ################### #################### | | ? ################### # ############# | | ? ################### # ############" | | " ##?################ + # # | | ??? ####?############## # # # | | ?? ##?### # # # ##+# | | ??? ?##?### # # # [ # | | ??? ###### " #k # # # ? | | ???? ##??## "" # # # " # | +----------------------------------------------------+ Best States ------------- Heat Dissipation 49 Energy Generation 94 Energy Capacity 1700 Matter Stores 300 Matter Capacity 300 Sight Range 16 Robot Scan Range 30 Terrain Scan Range 24 Terrain Scan Density 810 Power Amplification 30 Additional Mass Support 20 Armor Coverage 625 Resistance: KI 20 Resistance: EM 75 Propulsion Shielding 33 Utility Shielding 33 Phase Shifting 20 Evasion (%) 89 Melee Accuracy 16 Target Analysis 10 Core Analysis 6 Recoil Reduction 1 Offensive Hacking 50 Defensive Hacking 10 Authchip Count 1 Item Schematics ----------------- Powered Armor | -7/Factory | Hacked Combat Drone Bay | -7/Data Miner | Free Lgt. Regenerative Plating | -7/Data Miner | Free Biomechanical Wings | -7/Data Miner | Free Gravity Neutralizer | -7/Data Miner | Free Com. Ion Cannon | -7/Data Miner | Free Arm. Medium Treads | -7/Data Miner | Free Adv. Salvage Targeting Computer | -7/Data Miner | Free Hvy. Phase Cannon | -7/Data Miner | Free Thermic Laser | -7/Data Miner | Free Adv. Transmission Jammer | -7/Data Miner | Free KE Penetrator | -7/Data Miner | Free Imp. Medium Treads | -6/Zion | Archive Imp. Plasma Cutter | -6/Zion | Archive Lgt. Angular Momentum Engine | -6/Zion | Archive Adv. Field Recycling Unit | -6/Zion | Archive Thermal Shield | -6/Zion | Archive Variable Charge Gun | -6/Zion | Archive Adv. Heat Sink | -6/Zion | Archive Spk. Heavy Treads | -6/Zion | Archive Dispersion Rifle | -6/Zion | Archive Hpw. Shock Rifle | -6/Zion | Archive Tiamat Missile Launcher | -6/Zion | Archive Imp. Launcher Guidance Computer | -6/Zion | Archive Mak. Hover Unit | -6/Zion | Archive Imp. Remote Datajack | -6/Zion | Archive Assault Drone Bay | -5/Zhirov | Free Exp. Heat Sink | -5/Zhirov | Free Exp. Optical Array | -5/Zhirov | Free Imp. Arc Thrower | -5/Zhirov | Free Nanoactuators | -4/Factory | Hacked Exp. Transmission Jammer | -4/Factory | Hacked Prc. Phase Gun | -3/Testing | Archive Hvy. Hardcell Cannon | -3/Testing | Archive Hvy. Proton Cannon | -3/Testing | Archive Enh. Fission Core | -3/Testing | Archive Exp. Coolant Injector | -3/Testing | Archive Com. Particle Reactor | -3/Testing | Archive Adv. Kinecellerator | -3/Testing | Archive Hvy. Dispersion Rifle | -3/Testing | Archive Exp. Focal Shield | -3/Testing | Archive Robot Schematics ------------------ G-47 Trooper | -7/Data Miner | Free R-10 Processor | -7/Data Miner | Free X-67 Chaingunner | -7/Data Miner | Free A-15 Conveyor | -7/Data Miner | Free S-27 Virus | -7/Data Miner | Free G-50 Soldier | -7/Data Miner | Free L-41 Fighter | -6/Zion | Archive A-02 Transporter | -3/Testing | Archive A-27 Freighter | -3/Testing | Archive Fabricated ------------ Powered Armor | x2 | -7/Factory Gravity Neutralizer | x1 | -6/Factory Alien Tech Used ----------------- Core Expander Integrated Reactor Transdimensional Reconstructor Achievements -------------- None Challenges ------------ None RPGLIKE | -11 -10 -10 -10 -9 -8 -8 -7 -7 -7 -7 -6 -6 -6 -6 -6 -6 -5 -5 -5 -5 -5 -4 -4 -4 -4 -4 -4 -4 -4 -3 -3 -2 -1 --------- Run | Scr Mat Min Exi Min Mat Sto Fac Low Low Dat Pro Fac Low Low Zio Dee Pro Fac Upp Upp Zhi Pro Fac Was Fac Ext Cet Arc Hub Res Tes Res Acc Levels Raised 31 | . 1 1 . 1 3 4 3 . 1 . 1 2 . . 1 . 1 1 . 1 . 1 . 1 . 1 1 . 1 1 1 1 2 XP Earned 49732 | 3000 1728 1446 200 1364 5327 6380 3912 349 349 316 2494 2577 244 244 294 527 1796 1536 244 244 220 1250 1341 139 243 2728 1035 369 1257 1144 951 1851 2633 XP Spent 45765 | 350 4150 1300 140 50 6000 4860 3700 1645 . . 3150 1900 600 . 1900 160 . 2600 . . 1210 1700 . . . 2200 . . 2900 2650 1300 1300 . Upgrades 70 | 2 11 2 2 1 13 8 2 5 . . 3 3 1 . 2 2 . 1 . . 2 1 . . . 2 . . 1 3 1 2 . Power Slot 2 | . . . . . . . . . . . . 1 . . . . . . . . . . . . . . . . . 1 . . . Propulsion Slot 5 | . 3 . . . . . . . . . . . . . 1 . . . . . . 1 . . . . . . . . . . . Utility Slot 9 | . . 2 . . 2 . 2 . . . 1 . . . . . . 1 . . . . . . . . . . 1 . . . . Weapon Slot 1 | . . . . . . . . . . . . . . . 1 . . . . . . . . . . . . . . . . . . Heat Dissipation 4 | . . . . 1 . . . . . . . . . . . 2 . . . . 1 . . . . . . . . . . . . Energy Generation 5 | . . . . . . . . . . . 2 . . . . . . . . . . . . . . . . . . 2 1 . . Mass Support 3 | 1 . . . . . . . . . . . . 1 . . . . . . . 1 . . . . . . . . . . . . Inventory Capacity 6 | 1 . . . . 2 3 . . . . . . . . . . . . . . . . . . . . . . . . . . . Sensor Range 15 | . 4 . . . 9 . . 2 . . . . . . . . . . . . . . . . . . . . . . . . . Terrain Scan Density 8 | . . . 2 . . 3 . 3 . . . . . . . . . . . . . . . . . . . . . . . . . Melee Accuracy 6 | . 4 . . . . . . . . . . . . . . . . . . . . . . . . . . . . . . 2 . Hack Attack % 6 | . . . . . . 2 . . . . . 2 . . . . . . . . . . . . . 2 . . . . . . . Protomatter Created 3235 | . 133 44 . 58 369 449 331 . . . 73 184 . . . 203 148 . . . . . . . 66 455 99 . 285 54 48 158 78 Integrity Restored 6241 | . 351 114 . 81 735 993 563 17 . . 164 505 . . . 84 57 33 . . . . . . 198 709 248 112 305 162 120 460 230 Core 4428 | . 285 98 . 81 524 712 475 . . . 93 345 . . . 38 37 8 . . . . . . 171 365 174 78 242 162 120 265 155 Parts 1813 | . 66 16 . . 211 281 88 17 . . 71 160 . . . 46 20 25 . . . . . . 27 344 74 34 63 . . 195 75 Protomatter Decayed 2995 | . . 2 . 104 112 108 157 40 . . 130 47 11 . . 376 103 58 . . . . . . . 778 260 28 529 . 152 . . Game ------ Seed LightningAuthchipInitializer Manual? 0 Play Time 02:54:08 Cumulative 327.2 hours Start 2022.05.03 @ 21:53:23 End 2022.05.04 @ 00:50:59 Sessions 1 Manual Loads 0 Difficulty Rogue Special Mode Winter2019/RPGLIKE Game No. 318 Rogue 318 Adventurer 0 Explorer 0 Win Type 0 Total 21 Types 15/0/4/2/0/0/0/0/0 Lore% 83 Gallery% 88 Achievement% 79 Wizard Run 0 Options --------- ASCII 0 Keyboard 1 Movement Numpad Keybinds 0 Fullscreen 1 Font 18/SmallcapsGlow Map View 76x50 Tactical HUD 1 Map Filters NONE Filters NONE Steam 1 RUN: 75c14d1f-9bc7-4843-beff-10b30ab1e296